[Event "RUS-chT Men Rapid 2019"]
[Site "Sochi"]
[Date "2019.10.18"]
[Round "1.17"]
[White "Timofeev, Artyom"]
[Black "Skvortsov, Andrei"]
[Result "1/2-1/2"]
[ECO "A15"]
[WhiteElo "2595"]
[BlackElo "2139"]
[Annotator "ChessBase"]
[PlyCount "119"]
[EventDate "2019.10.18"]
[EventType "swiss"]
[EventCountry "RUS"]
[SourceTitle "playchess.com"]
[Source "ChessBase"]
[SourceQuality "1"]
[TimeControl "900+10"]

1. c4 {[%emt 0:00:00]} Nf6 {[%emt 0:00:02]} 2. e3 {[%emt 0:00:00]} c5 {[%emt 0:00:03]} 3. Be2 {[%emt 0:00:04]} g6 {[%emt 0:00:19]} 4. h4 {[%emt 0:00:04]} h5 {[%emt 0:00:28]} 5. Nf3 {[%emt 0:00:08]} Nc6 {[%emt 0:00:03]} 6. b3 {[%emt 0:00:07]} Bg7 {[%emt 0:00:03]} 7. Bb2 {[%emt 0:00:03]} O-O {[%emt 0:00:11]} 8. O-O {[%emt 0:00:04]} d5 {[%emt 0:00:02]} 9. cxd5 {[%emt 0:00:04]} Nxd5 {[%emt 0:00:22]} 10. Bxg7 {[%emt 0:00:03]} Kxg7 {[%emt 0:00:01]} 11. Qc1 {[%emt 0:00:02]} Qd6 {[%emt 0:00:11]} 12. Na3 {[%emt 0:00:04]} b6 {[%emt 0:01:00]} 13. d4 {[%emt 0:00:25]} cxd4 {[%emt 0:00:03]} 14. Nb5 {[%emt 0:00:02]} Qc5 {[%emt 0:00:18]} 15. Qb2 {[%emt 0:00:04]} Nc3 {[%emt 0:01:38]} 16. exd4 {[%emt 0:00:04]} Nxe2+ {[%emt 0:00:07]} 17. Qxe2 {[%emt 0:00:02]} Qf5 {[%emt 0:01:05]} 18. d5 {[%emt 0:00:02]} Ba6 {[%emt 0:01:09]} 19. a4 {[%emt 0:00:15]} Bxb5 {[%emt 0:01:54]} 20. Qxb5 {[%emt 0:00:44]} Ne5 {[%emt 0:00:21]} 21. Nxe5 {[%emt 0:00:10]} Qxe5 {[%emt 0:00:01]} 22. Rfe1 {[%emt 0:00:06]} Qf6 {[%emt 0:00:59]} 23. g3 {[%emt 0:00:06]} Rfd8 {[%emt 0:00:07]} 24. Rac1 {[%emt 0:00:19]} Rac8 {[%emt 0:00:43]} 25. Rc6 {[%emt 0:00:22]} Rxc6 {[%emt 0:01:55]} 26. Qxc6 {[%emt 0:00:02]} Rd6 {[%emt 0:00:09]} 27. Qc4 {[%emt 0:00:41]} a5 {[%emt 0:01:48]} 28. Re4 {[%emt 0:00:22]} Qa1+ {[%emt 0:00:25]} 29. Kg2 {[%emt 0:00:09]} Qf6 {[%emt 0:00:41]} 30. Re3 {[%emt 0:00:35]} Qf5 {[%emt 0:00:09]} 31. Qc3+ Qf6 32. Qe5 {[%emt 0:01:53]} Qxe5 {[%emt 0:00:13]} 33. Rxe5 {[%emt 0:00:01]} Kf6 {[%emt 0:00:00]} 34. f4 {[%emt 0:00:02]} e6 {[%emt 0:00:13]} 35. dxe6 {[%emt 0:00:04]} Rxe6 {[%emt 0:00:04]} 36. Rb5 {[%emt 0:00:02]} Re2+ {[%emt 0:00:23]} 37. Kf3 {[%emt 0:00:01]} Re6 {[%emt 0:00:01]} 38. Kf2 {[%emt 0:00:13]} Kg7 {[%emt 0:00:08]} 39. Rd5 {[%emt 0:01:47]} f5 {[%emt 0:00:06]} 40. Rd7+ {[%emt 0:00:04]} Kf6 {[%emt 0:00:03]} 41. Rb7 {[%emt 0:00:02]} Rc6 {[%emt 0:00:04]} 42. Ke2 {[%emt 0:00:03]} Ke6 {[%emt 0:00:00]} 43. Kd3 {[%emt 0:00:01]} Kd5 {[%emt 0:00:05]} 44. Rd7+ {[%emt 0:00:11]} Kc5 {[%emt 0:00:17]} 45. Kc3 {[%emt 0:01:21]} Re6 {[%emt 0:00:02]} 46. Rd3 {[%emt 0:01:27]} Re4 {[%emt 0:00:06]} 47. Kc2 {[%emt 0:00:14]} Re2+ {[%emt 0:00:03]} 48. Kc3 {[%emt 0:00:05]} Re4 {[%emt 0:00:01]} 49. Kb2 {[%emt 0:01:14]} Re2+ {[%emt 0:00:04]} 50. Ka3 {[%emt 0:00:04]} Rg2 {[%emt 0:00:04]} 51. Re3 {[%emt 0:00:06]} Rd2 {[%emt 0:00:13]} 52. Rc3+ {[%emt 0:00:39]} Kd5 {[%emt 0:00:46]} 53. b4 {[%emt 0:00:35]} Rd4 {[%emt 0:00:13]} 54. b5 {[%emt 0:00:06]} Rc4 {[%emt 0:00:11]} 55. Re3 {[%emt 0:01:25]} Re4 {[%emt 0:00:13]} 56. Rc3 {[%emt 0:01:25]} Rc4 {[%emt 0:00:01]} 57. Re3 {[%emt 0:00:22]} Re4 {[%emt 0:00:01]} 58. Rc3 {[%emt 0:00:00]} Rc4 {[%emt 0:00:01]} 59. Re3 {[%emt 0:00:01]} Re4 {[%emt 0:00:01]} 60. Rf3 1/2-1/2

[Event "RUS-chT Men Rapid 2019"]
[Site "Sochi"]
[Date "2019.10.18"]
[Round "1.19"]
[White "Faizrakhmanov, Ramil"]
[Black "Mochalin, Faddey"]
[Result "1-0"]
[ECO "D45"]
[WhiteElo "2434"]
[BlackElo "2199"]
[Annotator "NA"]
[PlyCount "71"]
[EventDate "2019.10.18"]
[EventType "swiss"]
[EventCountry "RUS"]
[SourceTitle "playchess.com"]
[Source "ChessBase"]
[SourceQuality "1"]
[TimeControl "900+10"]

1. d4 {[%emt 0:00:00]} d5 {[%emt 0:00:00]} 2. c4 {[%emt 0:00:00]} e6 {[%emt 0:00:01]} 3. Nf3 {[%emt 0:00:00]} Nf6 {[%emt 0:00:02]} 4. Nc3 {[%emt 0:00:03]} c6 {[%emt 0:00:02]} 5. e3 {[%emt 0:00:36]} Nbd7 {[%emt 0:00:04]} 6. Qc2 {[%emt 0:00:21]} Bd6 {[%emt 0:00:14]} 7. b3 {[%emt 0:00:14]} O-O {[%emt 0:00:11]} 8. Be2 {[%emt 0:00:04]} b6 {[%emt 0:00:14]} 9. O-O {[%emt 0:00:07]} Bb7 {[%emt 0:00:04]} 10. Bb2 {[%emt 0:00:10]} Qe7 {[%emt 0:00:37]} 11. Rfd1 {[%emt 0:00:24]} Rad8 {[%emt 0:00:30]} 12. h3 {[%emt 0:00:38]} Rfe8 {[%emt 0:00:16]} 13. e4 {[%emt 0:02:36]} dxe4 {[%emt 0:01:32]} 14. Nxe4 {[%emt 0:00:05]} Nxe4 {[%emt 0:02:31]} 15. Qxe4 {[%emt 0:00:02]} Nf6 {[%emt 0:00:55]} 16. Qh4 {[%emt 0:00:09]} Nd7 {[%emt 0:01:42]} 17. Qe4 {[%emt 0:04:49]} Nf6 {[%emt 0:01:55]} 18. Qe3 {[%emt 0:00:41]} c5 {[%emt 0:00:23]} 19. Ne5 {[%emt 0:00:13]} Qc7 {[%emt 0:03:09]} 20. Bf3 {[%emt 0:00:44]} Bxf3 {[%emt 0:00:58]} 21. Nxf3 {[%emt 0:00:02]} h6 {[%emt 0:01:20]} 22. Rd3 {[%emt 0:02:49]} Rd7 {[%emt 0:01:20]} 23. Rad1 {[%emt 0:00:31]} Red8 {[%emt 0:00:11]} 24. d5 {[%emt 0:00:34]} Bf4 {[%emt 0:00:36]} 25. Qe2 {[%emt 0:00:03]} exd5 {[%emt 0:00:09]} 26. Bxf6 {[%emt 0:00:03]} gxf6 {[%emt 0:00:03]} 27. Rxd5 {[%emt 0:00:11]} Rxd5 {[%emt 0:00:11]} 28. cxd5 {[%emt 0:00:01]} Qd7 {[%emt 0:00:17]} 29. Qe4 {[%emt 0:00:27]} Bd6 {[%emt 0:00:05]} 30. Nh4 {[%emt 0:00:05]} Bf8 {[%emt 0:00:12]} 31. Nf5 {[%emt 0:00:10]} Qe8 {[%emt 0:00:15]} 32. Qg4+ {[%emt 0:00:11]} Kh7 {[%emt 0:00:08]} 33. Rd3 {[%emt 0:00:06]} Qe1+ {[%emt 0:00:12]} 34. Kh2 {[%emt 0:00:01]} Bd6+ {[%emt 0:00:09]} 35. Nxd6 {[%emt 0:00:08]} Rxd6 {[%emt 0:00:11]} 36. Rg3 {[%emt 0:00:01]} 1-0

[Event "RUS-chT Men Rapid 2019"]
[Site "Sochi"]
[Date "2019.10.18"]
[Round "1.20"]
[White "Gutkovich, Polina"]
[Black "Samusenko, Maksim"]
[Result "0-1"]
[ECO "E61"]
[WhiteElo "2105"]
[BlackElo "2445"]
[Annotator "NA"]
[PlyCount "71"]
[EventDate "2019.10.18"]
[EventType "swiss"]
[EventCountry "RUS"]
[SourceTitle "playchess.com"]
[Source "ChessBase"]
[SourceQuality "1"]
[TimeControl "900+10"]

1. d4 {[%emt 0:00:00]} Nf6 {[%emt 0:00:00]} 2. c4 {[%emt 0:00:00]} g6 {[%emt 0:00:00]} 3. Nc3 {[%emt 0:00:00]} Bg7 {[%emt 0:00:00]} 4. Nf3 {[%emt 0:00:00]} O-O {[%emt 0:00:00]} 5. Bg5 {[%emt 0:00:00]} d6 {[%emt 0:00:00]} 6. e3 {[%emt 0:00:00]} Nbd7 {[%emt 0:00:00]} 7. Be2 {[%emt 0:00:00]} c6 {[%emt 0:00:04]} 8. O-O {[%emt 0:00:01]} a6 {[%emt 0:00:21]} 9. h3 {[%emt 0:00:03]} b5 {[%emt 0:00:04]} 10. Nd2 {[%emt 0:01:04]} bxc4 {[%emt 0:00:52]} 11. Nxc4 {[%emt 0:02:45]} c5 {[%emt 0:00:50]} 12. Rc1 {[%emt 0:02:39]} cxd4 {[%emt 0:01:03]} 13. exd4 {[%emt 0:00:17]} Rb8 {[%emt 0:02:19]} 14. Bf3 {[%emt 0:00:58]} a5 {[%emt 0:01:33]} 15. b3 {[%emt 0:00:37]} Ba6 {[%emt 0:00:37]} 16. Re1 {[%emt 0:00:02]} Rc8 {[%emt 0:01:35]} 17. Na4 {[%emt 0:01:02]} Re8 18. Qd2 {[%emt 0:01:07]} Bxc4 {[%emt 0:05:27]} 19. bxc4 {[%emt 0:00:01]} e5 {[%emt 0:00:29]} 20. c5 {[%emt 0:02:18]} dxc5 {[%emt 0:00:19]} 21. dxc5 {[%emt 0:00:16]} Qc7 {[%emt 0:01:05]} 22. c6 {[%emt 0:01:59]} Nf8 {[%emt 0:00:07]} 23. Be3 {[%emt 0:00:44]} e4 {[%emt 0:00:22]} 24. Bb6 {[%emt 0:00:15]} Qe5 {[%emt 0:00:22]} 25. Be2 {[%emt 0:00:56]} Ne6 {[%emt 0:00:13]} 26. Ba6 {[%emt 0:00:08]} Ra8 {[%emt 0:00:19]} 27. Bb7 {[%emt 0:00:02]} Rab8 {[%emt 0:00:07]} 28. Qxa5 {[%emt 0:00:09]} Nd5 {[%emt 0:00:14]} 29. Ba7 {[%emt 0:00:23]} Rbd8 {[%emt 0:00:08]} 30. Nc5 {[%emt 0:00:18]} Nef4 {[%emt 0:00:55]} 31. Nd7 {[%emt 0:00:32]} Qg5 {[%emt 0:00:01]} 32. g3 {[%emt 0:00:33]} Nxh3+ {[%emt 0:00:04]} 33. Kh2 {[%emt 0:00:28]} Qh5 {[%emt 0:00:08]} 34. g4 {[%emt 0:00:36]} Qxg4 {[%emt 0:00:10]} 35. Qxd5 {[%emt 0:00:14]} Nf4 {[%emt 0:00:06]} 36. Qb3 {[%emt 0:00:33]} 0-1

[Event "RUS-chT Men Rapid 2019"]
[Site "Sochi"]
[Date "2019.10.18"]
[Round "1.22"]
[White "Gutenev, Alexander"]
[Black "Bogachkova, Alena"]
[Result "1-0"]
[ECO "B24"]
[WhiteElo "2469"]
[BlackElo "2060"]
[Annotator "ChessBase"]
[PlyCount "39"]
[EventDate "2019.10.18"]
[EventType "swiss"]
[EventCountry "RUS"]
[SourceTitle "playchess.com"]
[Source "ChessBase"]
[SourceQuality "1"]
[TimeControl "900+10"]

1. e4 {[%emt 0:00:00]} c5 {[%emt 0:00:00]} 2. Nc3 {[%emt 0:00:00]} Nc6 {[%emt 0:00:00]} 3. Bb5 {[%emt 0:00:00]} Nd4 {[%emt 0:00:01]} 4. Nf3 {[%emt 0:00:00]} g6 {[%emt 0:00:10]} 5. Bc4 {[%emt 0:00:01]} Bg7 {[%emt 0:00:16]} 6. Nxd4 {[%emt 0:00:03]} cxd4 {[%emt 0:00:01]} 7. Qf3 {[%emt 0:00:01]} e6 {[%emt 0:03:03]} 8. Nb5 {[%emt 0:00:02]} d6 {[%emt 0:00:47]} 9. Qa3 {[%emt 0:00:04]} Be5 {[%emt 0:07:15]} 10. O-O {[%emt 0:00:03]} g5 {[%emt 0:01:56]} 11. c3 {[%emt 0:00:48]} dxc3 {[%emt 0:02:29]} 12. dxc3 {[%emt 0:00:03]} Nh6 {[%emt 0:00:13]} 13. f4 {[%emt 0:02:06]} gxf4 {[%emt 0:00:02]} 14. Bxf4 {[%emt 0:00:04]} Qb6+ {[%emt 0:00:21]} 15. Kh1 {[%emt 0:00:02]} Ng4 {[%emt 0:00:18]} 16. Bxe5 {[%emt 0:01:27]} Nxe5 {[%emt 0:00:22]} 17. Nxd6+ {[%emt 0:00:04]} Kd8 {[%emt 0:00:08]} 18. Nxf7+ {[%emt 0:00:14]} Nxf7 {[%emt 0:00:21]} 19. Rxf7 {[%emt 0:00:04]} Re8 {[%emt 0:00:10]} 20. Rd1+ {[%emt 0:00:05]} 1-0

[Event "RUS-chT Men Rapid 2019"]
[Site "Sochi"]
[Date "2019.10.18"]
[Round "1.23"]
[White "Mamedov, Elmin"]
[Black "Radzhabov, Rodion"]
[Result "0-1"]
[ECO "A01"]
[WhiteElo "2149"]
[BlackElo "2404"]
[Annotator "NA"]
[PlyCount "86"]
[EventDate "2019.10.18"]
[EventType "swiss"]
[EventCountry "RUS"]
[SourceTitle "playchess.com"]
[Source "ChessBase"]
[SourceQuality "1"]
[TimeControl "900+10"]

1. b3 {[%emt 0:00:00]} d5 {[%emt 0:00:00]} 2. Bb2 {[%emt 0:00:00]} Nf6 {[%emt 0:00:04]} 3. e3 {[%emt 0:00:04]} g6 {[%emt 0:00:14]} 4. Nf3 {[%emt 0:00:05]} Bg7 {[%emt 0:00:02]} 5. Bb5+ {[%emt 0:00:12]} c6 {[%emt 0:00:15]} 6. Be2 {[%emt 0:00:01]} O-O {[%emt 0:00:07]} 7. O-O {[%emt 0:00:02]} a5 {[%emt 0:00:45]} 8. a4 {[%emt 0:00:08]} Nbd7 {[%emt 0:02:24]} 9. d4 {[%emt 0:06:10]} Ne4 {[%emt 0:01:21]} 10. Nfd2 {[%emt 0:00:21]} Nxd2 {[%emt 0:00:45]} 11. Nxd2 {[%emt 0:00:07]} e5 {[%emt 0:00:25]} 12. dxe5 {[%emt 0:00:07]} Nxe5 {[%emt 0:00:03]} 13. Rb1 {[%emt 0:01:07]} Bf5 {[%emt 0:02:42]} 14. f4 {[%emt 0:00:42]} Nd7 {[%emt 0:02:22]} 15. Bxg7 {[%emt 0:00:12]} Kxg7 {[%emt 0:00:01]} 16. g4 {[%emt 0:00:21]} Be4 {[%emt 0:00:02]} 17. Nxe4 {[%emt 0:00:19]} dxe4 {[%emt 0:00:01]} 18. Qd4+ {[%emt 0:02:19]} Nf6 {[%emt 0:00:08]} 19. Rbd1 {[%emt 0:00:27]} Qxd4 {[%emt 0:02:18]} 20. Rxd4 {[%emt 0:00:06]} Nd5 {[%emt 0:00:02]} 21. Kf2 {[%emt 0:00:15]} Rfe8 {[%emt 0:00:50]} 22. Bc4 {[%emt 0:00:55]} Nb6 {[%emt 0:00:12]} 23. Rfd1 {[%emt 0:00:15]} Re7 {[%emt 0:00:22]} 24. Bf1 {[%emt 0:02:23]} Nd5 {[%emt 0:00:26]} 25. c4 {[%emt 0:00:12]} Nb4 {[%emt 0:00:07]} 26. Rd7 {[%emt 0:01:05]} Rae8 {[%emt 0:00:04]} 27. R1d6 {[%emt 0:00:24]} Na6 {[%emt 0:00:18]} 28. Rxe7 {[%emt 0:00:15]} Rxe7 {[%emt 0:00:01]} 29. f5 {[%emt 0:00:19]} gxf5 {[%emt 0:00:25]} 30. gxf5 {[%emt 0:00:00]} f6 {[%emt 0:00:02]} 31. Kg3 {[%emt 0:00:31]} Nc5 {[%emt 0:00:02]} 32. Kf4 {[%emt 0:00:01]} Nxb3 {[%emt 0:00:11]} 33. Rd8 {[%emt 0:00:19]} Nc5 {[%emt 0:01:14]} 34. Ra8 {[%emt 0:00:18]} Re5 {[%emt 0:00:14]} 35. Ra7 {[%emt 0:00:23]} Kf7 {[%emt 0:00:34]} 36. Kg4 {[%emt 0:00:17]} h5+ {[%emt 0:00:01]} 37. Kf4 {[%emt 0:00:06]} Ke7 {[%emt 0:00:06]} 38. Be2 {[%emt 0:00:01]} h4 {[%emt 0:00:06]} 39. Kg4 {[%emt 0:00:08]} Kd6 {[%emt 0:00:46]} 40. Rxa5 {[%emt 0:00:09]} Re8 {[%emt 0:00:01]} 41. Kxh4 {[%emt 0:00:07]} Nb3 {[%emt 0:00:15]} 42. Ra7 {[%emt 0:00:07]} Kc7 {[%emt 0:00:01]} 43. a5 {[%emt 0:00:10]} Kb8 {[%emt 0:00:01]} 0-1

[Event "RUS-chT Men Rapid 2019"]
[Site "Sochi"]
[Date "2019.10.18"]
[Round "1.25"]
[White "Drygalov, Andrey"]
[Black "Chekhov, Sergei"]
[Result "0-1"]
[ECO "B41"]
[WhiteElo "2484"]
[BlackElo "2463"]
[Annotator "ChessBase"]
[PlyCount "90"]
[EventDate "2019.10.18"]
[EventType "swiss"]
[EventCountry "RUS"]
[SourceTitle "playchess.com"]
[Source "ChessBase"]
[SourceQuality "1"]
[TimeControl "900+10"]

1. e4 {[%emt 0:00:00]} c5 {[%emt 0:01:02]} 2. Nf3 {[%emt 0:00:00]} e6 {[%emt 0:00:01]} 3. d4 {[%emt 0:00:00]} cxd4 {[%emt 0:00:05]} 4. Nxd4 {[%emt 0:00:00]} a6 {[%emt 0:00:02]} 5. c4 {[%emt 0:00:00]} Nf6 {[%emt 0:00:12]} 6. Nc3 {[%emt 0:00:00]} Bb4 {[%emt 0:00:01]} 7. Qd3 {[%emt 0:00:07]} Qc7 {[%emt 0:00:30]} 8. a3 {[%emt 0:00:36]} Be7 {[%emt 0:00:03]} 9. Be2 {[%emt 0:00:32]} d6 {[%emt 0:00:19]} 10. b4 {[%emt 0:00:52]} Nbd7 {[%emt 0:00:28]} 11. f4 {[%emt 0:00:01]} b6 {[%emt 0:00:05]} 12. O-O {[%emt 0:00:13]} O-O {[%emt 0:01:20]} 13. Be3 {[%emt 0:00:34]} Rd8 {[%emt 0:01:09]} 14. Qc2 {[%emt 0:00:31]} Bb7 {[%emt 0:00:16]} 15. Rac1 {[%emt 0:00:08]} Rac8 {[%emt 0:00:19]} 16. Qb1 {[%emt 0:04:30]} Qb8 {[%emt 0:00:20]} 17. f5 {[%emt 0:00:13]} e5 {[%emt 0:02:44]} 18. Nb3 {[%emt 0:00:10]} b5 {[%emt 0:00:25]} 19. Nd5 {[%emt 0:01:56]} Bf8 {[%emt 0:00:22]} 20. Na5 {[%emt 0:00:47]} Ba8 {[%emt 0:00:08]} 21. Bg5 {[%emt 0:01:05]} bxc4 {[%emt 0:01:17]} 22. Bxf6 {[%emt 0:01:20]} Nxf6 {[%emt 0:00:06]} 23. Nxf6+ {[%emt 0:00:11]} gxf6 {[%emt 0:00:01]} 24. Bxc4 {[%emt 0:00:01]} d5 {[%emt 0:00:38]} 25. Bxd5 {[%emt 0:00:30]} Bxd5 {[%emt 0:00:23]} 26. exd5 {[%emt 0:00:01]} Rxd5 {[%emt 0:00:44]} 27. Qe4 {[%emt 0:01:36]} Rxc1 {[%emt 0:01:29]} 28. Rxc1 {[%emt 0:00:02]} Qb6+ {[%emt 0:00:06]} 29. Kh1 {[%emt 0:00:13]} Rd4 {[%emt 0:00:55]} 30. Qe2 {[%emt 0:00:01]} Bh6 {[%emt 0:00:26]} 31. Rf1 {[%emt 0:01:12]} Qb5 {[%emt 0:02:12]} 32. Qe1 {[%emt 0:01:43]} Rd3 {[%emt 0:00:27]} 33. Qe4 {[%emt 0:00:41]} Rd4 {[%emt 0:01:08]} 34. Qe1 {[%emt 0:00:01]} Rd3 {[%emt 0:00:01]} 35. Qe4 {[%emt 0:00:01]} Rd4 {[%emt 0:00:42]} 36. Qe1 {[%emt 0:00:01]} Bg5 {[%emt 0:00:02]} 37. Nb3 {[%emt 0:01:06]} Rd3 {[%emt 0:00:10]} 38. Nc5 {[%emt 0:00:01]} Rxa3 {[%emt 0:00:07]} 39. Qd1 {[%emt 0:00:22]} Kg7 {[%emt 0:00:29]} 40. h4 {[%emt 0:00:07]} Bf4 {[%emt 0:00:10]} 41. Ne4 {[%emt 0:00:11]} h5 {[%emt 0:00:10]} 42. Nd6 {[%emt 0:00:07]} Qc6 {[%emt 0:00:08]} 43. Rf3 {[%emt 0:00:10]} Ra2 {[%emt 0:00:14]} 44. Qf1 {[%emt 0:00:12]} Qxd6 {[%emt 0:00:08]} 45. Rd3 {[%emt 0:00:05]} Qxd3 {[%emt 0:00:08]} 0-1

[Event "RUS-chT Men Rapid 2019"]
[Site "Sochi"]
[Date "2019.10.18"]
[Round "1.27"]
[White "Vastrukhin, Oleg"]
[Black "Popov, Maksim M."]
[Result "1-0"]
[ECO "A00"]
[WhiteElo "2428"]
[BlackElo "2152"]
[Annotator "NA"]
[PlyCount "65"]
[EventDate "2019.10.18"]
[EventType "swiss"]
[EventCountry "RUS"]
[SourceTitle "playchess.com"]
[Source "ChessBase"]
[SourceQuality "1"]
[TimeControl "900+10"]

1. g3 {[%emt 0:00:00]} Nf6 {[%emt 0:00:00]} 2. Bg2 {[%emt 0:00:00]} d5 {[%emt 0:00:00]} 3. Nf3 {[%emt 0:00:00]} e6 {[%emt 0:00:00]} 4. O-O {[%emt 0:00:00]} c5 {[%emt 0:00:00]} 5. d4 {[%emt 0:00:09]} Nc6 {[%emt 0:00:14]} 6. c4 {[%emt 0:00:01]} cxd4 {[%emt 0:00:52]} 7. Nxd4 {[%emt 0:00:10]} Be7 {[%emt 0:00:36]} 8. Nc3 {[%emt 0:00:15]} O-O {[%emt 0:00:09]} 9. cxd5 {[%emt 0:00:47]} Nxd5 {[%emt 0:00:14]} 10. Nxd5 {[%emt 0:01:06]} exd5 {[%emt 0:00:03]} 11. Be3 {[%emt 0:00:08]} Be6 {[%emt 0:00:26]} 12. Rc1 {[%emt 0:00:07]} Rc8 {[%emt 0:01:42]} 13. Qa4 {[%emt 0:00:07]} Bf6 {[%emt 0:02:03]} 14. b3 {[%emt 0:01:00]} Qd7 {[%emt 0:00:25]} 15. Nxc6 {[%emt 0:00:10]} bxc6 {[%emt 0:00:08]} 16. Qxa7 {[%emt 0:00:01]} Qxa7 {[%emt 0:00:15]} 17. Bxa7 {[%emt 0:00:02]} Ra8 {[%emt 0:00:02]} 18. Bc5 {[%emt 0:00:02]} Rfb8 {[%emt 0:00:01]} 19. Rc2 {[%emt 0:01:24]} Bf5 {[%emt 0:00:06]} 20. e4 {[%emt 0:00:02]} dxe4 {[%emt 0:00:14]} 21. Be3 {[%emt 0:00:02]} h5 {[%emt 0:00:55]} 22. h3 {[%emt 0:00:11]} Rb4 {[%emt 0:00:53]} 23. Rd1 {[%emt 0:00:07]} Be6 {[%emt 0:00:32]} 24. Bc5 {[%emt 0:00:08]} Rb5 {[%emt 0:00:37]} 25. Bxe4 {[%emt 0:00:09]} Rba5 {[%emt 0:00:02]} 26. Rdd2 {[%emt 0:00:36]} Bxh3 {[%emt 0:00:04]} 27. Bxc6 {[%emt 0:00:19]} Rc8 {[%emt 0:02:14]} 28. b4 {[%emt 0:00:01]} Bf5 {[%emt 0:00:01]} 29. Rc1 {[%emt 0:02:10]} Bg5 {[%emt 0:01:54]} 30. f4 {[%emt 0:00:19]} Ra3 {[%emt 0:00:54]} 31. fxg5 {[%emt 0:00:05]} Rxc6 {[%emt 0:00:02]} 32. b5 {[%emt 0:00:01]} Rc8 {[%emt 0:00:01]} 33. Bxa3 {[%emt 0:00:02]} 1-0

[Event "RUS-chT Men Rapid 2019"]
[Site "Sochi"]
[Date "2019.10.18"]
[Round "1.28"]
[White "Rudakov, Sergey S."]
[Black "Utnasunov, Alexander"]
[Result "1-0"]
[ECO "B53"]
[WhiteElo "1855"]
[BlackElo "2442"]
[Annotator "NA"]
[PlyCount "81"]
[EventDate "2019.10.18"]
[EventType "swiss"]
[EventCountry "RUS"]
[SourceTitle "playchess.com"]
[Source "ChessBase"]
[SourceQuality "1"]
[TimeControl "900+10"]

1. e4 {[%emt 0:00:00]} c5 {[%emt 0:00:00]} 2. Nf3 {[%emt 0:00:00]} d6 {[%emt 0:00:00]} 3. d4 {[%emt 0:00:06]} cxd4 {[%emt 0:00:00]} 4. Qxd4 {[%emt 0:00:02]} Nc6 {[%emt 0:00:00]} 5. Bb5 {[%emt 0:00:05]} Bd7 {[%emt 0:00:00]} 6. Bxc6 {[%emt 0:00:02]} Bxc6 {[%emt 0:00:00]} 7. c4 {[%emt 0:00:02]} Nf6 {[%emt 0:00:22]} 8. Nc3 {[%emt 0:00:02]} g6 {[%emt 0:00:04]} 9. O-O {[%emt 0:01:56]} Bg7 {[%emt 0:00:04]} 10. Qd3 {[%emt 0:00:09]} O-O {[%emt 0:00:09]} 11. h3 {[%emt 0:02:52]} a6 {[%emt 0:00:08]} 12. Be3 {[%emt 0:00:36]} Qa5 {[%emt 0:00:46]} 13. a3 {[%emt 0:01:08]} Rfc8 {[%emt 0:00:15]} 14. b4 {[%emt 0:00:22]} Qc7 {[%emt 0:00:16]} 15. Rac1 {[%emt 0:00:13]} Nd7 {[%emt 0:01:54]} 16. Nd5 {[%emt 0:00:07]} Qd8 {[%emt 0:00:20]} 17. Bd4 {[%emt 0:00:51]} b5 {[%emt 0:01:31]} 18. Bxg7 {[%emt 0:00:28]} Kxg7 {[%emt 0:00:02]} 19. c5 {[%emt 0:00:32]} dxc5 {[%emt 0:01:12]} 20. bxc5 {[%emt 0:00:06]} e6 {[%emt 0:00:23]} 21. Qd4+ {[%emt 0:01:20]} Kg8 {[%emt 0:00:33]} 22. Ne3 {[%emt 0:00:19]} Nf6 {[%emt 0:00:30]} 23. Qe5 {[%emt 0:01:04]} Bxe4 {[%emt 0:00:54]} 24. Rfd1 {[%emt 0:00:07]} Qe7 {[%emt 0:00:04]} 25. Nd4 {[%emt 0:01:29]} Ra7 {[%emt 0:02:22]} 26. f3 {[%emt 0:00:08]} Ba8 {[%emt 0:00:06]} 27. Nb3 {[%emt 0:01:56]} Rd7 {[%emt 0:00:03]} 28. Rxd7 {[%emt 0:00:11]} Nxd7 {[%emt 0:00:03]} 29. Qd4 {[%emt 0:00:17]} e5 {[%emt 0:00:16]} 30. Qc3 {[%emt 0:00:01]} Qg5 {[%emt 0:00:23]} 31. Rd1 {[%emt 0:00:55]} Bxf3 {[%emt 0:00:13]} 32. Rxd7 {[%emt 0:00:06]} Bc6 {[%emt 0:00:13]} 33. Rd1 {[%emt 0:00:09]} f5 {[%emt 0:00:16]} 34. Na5 {[%emt 0:00:17]} Be4 {[%emt 0:00:13]} 35. c6 {[%emt 0:00:14]} f4 {[%emt 0:00:09]} 36. Ng4 {[%emt 0:00:03]} Re8 {[%emt 0:01:20]} 37. c7 {[%emt 0:00:15]} Bf5 {[%emt 0:00:01]} 38. Qc6 {[%emt 0:00:13]} Rf8 {[%emt 0:00:23]} 39. Qd5+ {[%emt 0:00:06]} Kg7 {[%emt 0:00:17]} 40. Qxe5+ {[%emt 0:00:01]} Kg8 {[%emt 0:00:00]} 41. Rd7 {[%emt 0:00:02]} 1-0

[Event "RUS-chT Men Rapid 2019"]
[Site "Sochi"]
[Date "2019.10.18"]
[Round "2.1"]
[White "Kokarev, Dmitry"]
[Black "Tsydypov, Zhamsaran"]
[Result "1/2-1/2"]
[ECO "B54"]
[WhiteElo "2593"]
[BlackElo "2553"]
[Annotator "ChessBase"]
[PlyCount "76"]
[EventDate "2019.10.18"]
[EventType "swiss"]
[EventCountry "RUS"]
[SourceTitle "playchess.com"]
[Source "ChessBase"]
[SourceQuality "1"]
[TimeControl "900+10"]

1. e4 {[%emt 0:00:00]} c5 {[%emt 0:00:19]} 2. Nf3 {[%emt 0:00:00]} d6 {[%emt 0:00:02]} 3. d4 {[%emt 0:00:00]} cxd4 {[%emt 0:00:02]} 4. Nxd4 {[%emt 0:00:03]} Nf6 {[%emt 0:00:04]} 5. f3 {[%emt 0:00:02]} e5 {[%emt 0:00:48]} 6. Nb3 {[%emt 0:00:02]} a5 {[%emt 0:00:49]} 7. Bb5+ {[%emt 0:00:08]} Nc6 {[%emt 0:00:21]} 8. c4 {[%emt 0:00:53]} a4 {[%emt 0:02:28]} 9. N3d2 {[%emt 0:00:03]} Qb6 {[%emt 0:00:03]} 10. Nc3 {[%emt 0:00:49]} Qe3+ {[%emt 0:00:34]} 11. Qe2 {[%emt 0:00:17]} Qxe2+ {[%emt 0:00:08]} 12. Kxe2 {[%emt 0:01:44]} Bd7 {[%emt 0:00:05]} 13. Kd1 {[%emt 0:01:11]} Nd4 {[%emt 0:00:58]} 14. Bxd7+ {[%emt 0:00:14]} Kxd7 {[%emt 0:00:20]} 15. Nf1 {[%emt 0:00:03]} Be7 {[%emt 0:01:12]} 16. Ne3 {[%emt 0:00:08]} Rhc8 {[%emt 0:00:13]} 17. Bd2 {[%emt 0:00:04]} Bd8 {[%emt 0:00:17]} 18. Rb1 {[%emt 0:00:46]} Ra6 {[%emt 0:00:40]} 19. Be1 {[%emt 0:02:33]} Ba5 {[%emt 0:00:54]} 20. Bh4 {[%emt 0:00:35]} Nh5 {[%emt 0:00:02]} 21. Nxa4 {[%emt 0:01:14]} Bd8 {[%emt 0:00:28]} 22. Bxd8 {[%emt 0:00:09]} Rxa4 {[%emt 0:00:02]} 23. Bb6 {[%emt 0:00:40]} Rxa2 {[%emt 0:00:36]} 24. Bxd4 {[%emt 0:00:02]} exd4 {[%emt 0:00:02]} 25. Nd5 {[%emt 0:00:02]} Kd8 {[%emt 0:00:29]} 26. Kc2 {[%emt 0:00:33]} b5 {[%emt 0:00:59]} 27. Kd3 {[%emt 0:03:07]} Rxc4 {[%emt 0:00:37]} 28. Ra1 {[%emt 0:00:48]} Rxb2 {[%emt 0:00:45]} 29. Ra8+ {[%emt 0:00:03]} Rc8 {[%emt 0:00:03]} 30. Rxc8+ {[%emt 0:00:02]} Kxc8 {[%emt 0:00:02]} 31. Rc1+ {[%emt 0:00:09]} Kd8 {[%emt 0:00:35]} 32. g4 {[%emt 0:00:56]} Nf6 {[%emt 0:00:06]} 33. Nxf6 {[%emt 0:00:04]} gxf6 {[%emt 0:00:04]} 34. Kxd4 {[%emt 0:00:01]} Rxh2 {[%emt 0:01:10]} 35. Rb1 {[%emt 0:00:06]} h5 {[%emt 0:01:02]} 36. Rxb5 {[%emt 0:00:02]} hxg4 {[%emt 0:00:06]} 37. fxg4 {[%emt 0:00:01]} Ke7 {[%emt 0:00:25]} 38. Ke3 {[%emt 0:00:05]} Rh3+ {[%emt 0:00:14]} 1/2-1/2